Cogmind - Beta 13 @@@ ROGUE MODE // 2024.06.02 @ 16:27:26 Player: Haldron Result: Destroyed by G-50 Soldier with Heavy Laser Performance ------------- Evolutions (5) 2500 Regions Visited (4) 800 Robots Destroyed (72) 360 Value Destroyed (2155) 2155 Prototype IDs (7) 140 Alien Tech Used (0) 0 Bonus (142) 142 TOTAL SCORE: 6097 Bonus ------- High Alert Combat Kills 142 Cogmind --------- Core Integrity 0/1000 Matter 260/300 Energy 11/100 System Corruption 3% Temperature Cool (9) Movement Hovering (60) Location -5/Factory Parts ------- > --- POWER (1) -------- (None) > --- PROPULSION (6) --- Improved Gravmag System > --- UTILITY (8) ------ Advanced Targeting Computer Advanced Targeting Computer > --- WEAPON (2) ------- (None) > --- INVENTORY (5) ---- Improved Sensor Array Improved Weapon Cycler Improved Weapon Cycler Long-range Tractor Beam Improved Plasma Cutter Peak State ------------ > --- POWER ------------ Ion-Compressor Engine > --- PROPULSION ------- Treaded Armored-Carbon Exoskeleton Armored Wheel Field Propulsion Drive > --- UTILITY ---------- Armored Scrap Engine Advanced Heat Sink High-capacity Storage Unit Advanced Weight Redist. System Machine Analyzer Improved Transmission Jammer Improved Corruption Screen > --- WEAPON ----------- Ballistic Gauss Construct/G Great Axe > --- INVENTORY -------- High-capacity Matter Pod Advanced Signal Interpreter Hardened Medium Armor Plating Advanced Shield Generator Authchip [R/Combat] Authchip [R/Combat] Authchip [R/Combat] Authchip [R/Combat] Authchip [R/Combat] Authchip [Device] Authchip [Device] Authchip [Processor] Improved Corruption Screen Improved Corruption Screen Long-range Tractor Beam Guided EMP Blaster Datajack Improved Plasma Cutter Great Maul [Rating: 99] Favorites ----------- Power Ion Engine Engine Ion Engine Power Core Light Nuclear Core Propulsion Compact Wheel Treads Constructs Wheel Compact Wheel Hover Unit Antigrav System Flight Unit Field Propulsion Drive Utility Huge Storage Unit Device Armored Scrap Engine Storage Huge Storage Unit Processor Improved Corruption Screen Hackware Hacking Suite Protection Light Armor Plating Weapon Beam Cannon Energy Gun Constructs Energy Cannon Beam Cannon Ballistic Gun Assault Rifle Launcher Guided EMP Blaster Special Weapon Mining Laser Impact Weapon Heavy Hammer Slashing Weapon Great Axe Build | -11 -10 -10 -7 -5 ------- Run | Yrd Mat Sub Rec Fac Slots Evolved 10 | . . . . 10 Power . | . . . . . Propulsion 4 | . . . . 4 Utility 6 | . . . . 6 Weapon . | . . . . . Parts Attached 136 | 14 30 6 7 79 Power 6 | 1 2 1 . 2 Engine 4 | 1 2 1 . . Core 2 | . . . . 2 Reactor . | . . . . . Propulsion 51 | 4 16 . 2 29 Treads 11 | 1 7 . . 3 Leg . | . . . . . Wheel 19 | 3 9 . 2 5 Hover 20 | . . . . 20 Flight 1 | . . . . 1 Utility 55 | 6 7 1 3 38 Device 28 | 4 3 1 1 19 Storage 5 | 2 1 . . 2 Processor 12 | . 1 . 1 10 Hackware 6 | . . . 1 5 Protection 4 | . 2 . . 2 Artifact . | . . . . . Weapon 24 | 3 5 4 2 10 Energy Gun 1 | 1 . . . . Energy Cannon 5 | . 2 1 . 2 Ballistic Gun 6 | 2 2 2 . . Ballistic Cannon . | . . . . . Launcher 1 | . . . . 1 Special Weapon 3 | . 1 1 1 . Impact Weapon 5 | . . . 1 4 Slashing Weapon 3 | . . . . 3 Piercing Weapon . | . . . . . Special Melee Weapon . | . . . . . Unidentified Prototypes . | . . . . . Parts Lost 43 | . 2 4 . 37 Power 4 | . 1 1 . 2 Propulsion 12 | . . . . 12 Utility 19 | . 1 1 . 17 Weapon 8 | . . 2 . 6 Highest Loss Streak 19 | . 1 4 . 19 To Critical Strikes . | . . . . . Average Slot Usage (%) 86 | . 99 98 100 71 Engine 8 | . 13 13 14 1 Core 1 | . . . . 3 Treads 2 | . 4 . . 1 Wheel 16 | . 23 28 28 6 Hover 4 | . . . . 9 Device 10 | . 7 4 1 17 Storage 9 | . 14 14 14 4 Processor 3 | . . . 1 6 Hackware 4 | . . . 10 3 Protection 2 | . 6 9 . 1 Energy Gun 1 | . 3 . . . Energy Cannon 7 | . 10 14 14 2 Ballistic Gun 5 | . 13 8 7 . Special Weapon 1 | . . 5 5 . Impact Weapon 1 | . . . . 3 Naked Turns . | . . . . . Heaviest Build 114 | 14 93 93 92 114 Greatest Support 67 | 26 40 32 32 67 Greatest Overweight (x) 17 | 3 2 2 3 17 Average Overweight (x) 2 | . 1 2 2 2 Largest Inventory Capacity 25 | 8 25 25 25 25 Average Capacity 21 | 7 22 25 25 19 Most Carried 25 | 7 25 25 25 25 Average Carried 20 | 4 20 24 24 18 Final Capacity 25 | 8 25 25 25 5 Final Carried 25 | 6 25 21 25 5 Scrap Engine Consumption 69 | . . . . 69 Constructs Created 7 | . . . . 7 Constructs Modified 16 | . . . . 16 Class Distribution -------------------- 67% | Mutant 27% | Scavenger-Mutant 4% | Construct Dominant Class ---------------- Mutant | -10/Materials Mutant | -10/Subcaves Scavenger-Mutant | -7/Recycling Mutant | -5/Factory Resources | -11 -10 -10 -7 -5 ----------- Run | Yrd Mat Sub Rec Fac Matter Collected 2603 | 306 935 108 55 1199 Remotely 632 | . 632 . . . Salvage Created 2864 | 98 1314 105 . 1347 Parts 140 | 9 67 2 . 62 Haulers Intercepted 3 | . 2 . . 1 Recyclers Shooed 7 | . 5 . . 2 Parts Field Recycled . | . . . . . Retrieved Matter . | . . . . . Parts Self-Destructed 4 | . . 4 . . Prevented . | . . . . . Kills | -11 -10 -10 -7 -5 ------- Run | Yrd Mat Sub Rec Fac Combat Hostiles Destroyed 37 | . 18 3 . 16 Guns 15 | . 10 2 . 3 Cannons 17 | . 8 1 . 8 AOE 2 | . . . . 2 Classes Destroyed 15 | 2 6 1 . 6 Worker 4 | . 1 . . 3 Builder 3 | . . . . 3 Tunneler 2 | 2 . . . . Hauler 3 | . 2 . . 1 Recycler 10 | 1 7 . . 2 Mechanic 1 | . . . . 1 Operator 3 | . 2 . . 1 Watcher 9 | . 3 . . 6 Swarmer 6 | . 6 . . . Grunt 20 | . 12 2 . 6 Brawler 1 | . . . . 1 Sentry 1 | . . . . 1 Hunter 3 | . . . . 3 Programmer 5 | . . . . 5 Subdweller 1 | . . 1 . . Best Kill Streak 5 | 2 4 3 . 5 Combat Bots Only 3 | . 3 3 . 2 Max Kills in Single Turn 2 | 1 1 1 . 2 Gunslinging . | . . . . . Exploded 2 | . . . . 2 Melee . | . . . . . Uniques/NPCs Destroyed . | . . . . . Combat | -11 -10 -10 -7 -5 -------- Run | Yrd Mat Sub Rec Fac Hostile Shots Fired 629 | . 64 43 . 522 Missed 210 | . 15 7 . 188 Damage Taken 7958 | . 486 716 . 6756 Core 1227 | . 57 168 . 1002 Absorbed by Shields 91 | . . . . 91 Ignored by Resistances 178 | . . . . 178 Regen/Repaired (Parts) 1284 | . 62 . . 1222 Core Remaining (%) 55 | 100 . . 10 . Volleys Fired 297 | 11 85 22 1 178 Largest 2 | 1 2 2 1 2 Hottest 141 | 40 100 100 100 141 Shots Fired 400 | 11 166 40 2 181 Gun 193 | 11 116 18 . 48 Cannon 202 | . 49 21 1 131 Launcher 2 | . . . . 2 Special 3 | . 1 1 1 . Kinetic 128 | . 82 18 . 28 Thermal 270 | 11 84 22 2 151 Explosive . | . . . . . Electromagnetic 2 | . . . . 2 Robot Hit Streak 12 | 4 8 6 5 12 Robot Miss Streak 6 | 4 5 3 . 6 Penetration Max . | . . . . . Secondary Targets . | . . . . . Shots Hit Robots 220 | 6 93 25 1 95 Core Hits 107 | 4 47 8 . 48 Critical Kills 5 | . . . . 5 Critical Parts Destroyed 1 | . 1 . . . Critical Strikes 9 | . 1 . . 8 Destroy 5 | . 1 . . 4 Blast 1 | . . . . 1 Smash 1 | . . . . 1 Sever 2 | . . . . 2 Melee Attacks 39 | . . . . 39 Impact 25 | . . . . 25 Slashing 14 | . . . . 14 Piercing . | . . . . . Sneak Attacks 5 | . . . . 5 Combat Hostiles . | . . . . . Follow-up Attacks . | . . . . . Damage Inflicted 5524 | 68 1279 379 17 3781 Guns 1427 | 68 806 152 . 401 Cannons 2777 | . 473 227 17 2060 Explosions 769 | . . . . 769 Melee 551 | . . . . 551 Ramming . | . . . . . Kinetic 989 | . 547 152 . 290 Thermal 3698 | 68 732 227 17 2654 Explosive 230 | . . . . 230 Electromagnetic 56 | . . . . 56 Impact 199 | . . . . 199 Slashing 352 | . . . . 352 Piercing . | . . . . . Highest Corruption 3 | . 1 1 1 3 Average Corruption 1 | . 1 1 1 2 Corruption Purged . | . . . . . Corruption Blocked 26 | . . . . 26 Effects 39 | . 10 3 7 19 Message Errors 9 | . . . 2 7 Matter Fused 10 | . 3 2 2 3 Heat Flow Errors 5 | . 3 . . 2 Energy Discharges 1 | . 1 . . . Parts Fused 2 | . . . . 2 Data Loss (minor) 8 | . 2 1 1 4 Data Loss (major) 2 | . 1 . . 1 Misfires 1 | . . . 1 . Alerts 1 | . . . 1 . Overload Shots . | . . . . . Overflow Damage 278 | . 20 . . 258 Projectiles 56 | . 20 . . 36 Explosions 83 | . . . . 83 Melee 139 | . . . . 139 Knockbacks 3 | . . . . 3 Impact . | . . . . . Kinetic 3 | . . . . 3 Secondary . | . . . . . Self-Inflicted Damage 145 | . . . . 145 Shots 2 | . . . . 2 Rammed . | . . . . . Targets Rammed . | . . . . . Kicked . | . . . . . Crushed . | . . . . . Highest Temperature 278 | . 278 . 20 163 Average Temperature 49 | . 57 . 13 37 Received Heat Transfer 1452 | . 186 147 . 1119 Effects 1 | . 1 . . . Energy Bleed 1 | . 1 . . . Siege Activations . | . . . . . Robots Corrupted . | . . . . . Combat Hostiles . | . . . . . Parts Fried . | . . . . . Impact Corruptions 1 | . . . . 1 Robots Melted 3 | . . . . 3 Combat Hostiles 3 | . . . . 3 Parts Melted 8 | . 2 1 . 5 Heat Transferred 6367 | 150 1599 481 37 4100 Parts Sabotaged 1 | . . . . 1 Parts Stolen . | . . . . . Parts Stripped . | . . . . . Power Chain Reactions . | . . . . . Alert | -11 -10 -10 -7 -5 ------- Run | Yrd Mat Sub Rec Fac Peak Influence 1101 | 15 217 . 58 1101 Initial 100 | . 9 . 34 100 Average 237 | 8 115 . 15 418 Maximum Alert Level 4 | . 1 . . 4 Low Security (%) 69 | 100 99 . 100 36 Level 1 10 | . . . . 22 Level 2 12 | . . . . 26 Level 3 7 | . . . . 15 Level 4 . | . . . . . Level 5 . | . . . . . High Security . | . . . . . Max Security . | . . . . . Squads Dispatched 20 | . 5 . . 15 Investigation 8 | . 4 . . 4 Extermination 5 | . . . . 5 Reinforcement 5 | . 1 . . 4 Assault 2 | . . . . 2 Garrison . | . . . . . Intercept . | . . . . . Searches Triggered . | . . . . . Construction Impeded . | . . . . . Haulers Reinforced 1 | . . . . 1 Active Scanning Responses . | . . . . . Cargo Convoy Interrupts 1 | . . . . 1 Stealth | -11 -10 -10 -7 -5 --------- Run | Yrd Mat Sub Rec Fac Distress Signals 4 | . 3 . . 1 Communications Jammed 24 | . . . . 24 Distress Signals 24 | . . . . 24 Times Spotted 107 | . 33 7 . 67 Peak Tracking Total 16 | . 4 3 . 16 Tactical Retreats 12 | . 1 . . 11 Traps | -11 -10 -10 -7 -5 ------- Run | Yrd Mat Sub Rec Fac Traps Triggered 3 | . 2 . . 1 Indirectly . | . . . . . Trap Hack Attempts . | . . . . . Triggered . | . . . . . Disarmed . | . . . . . Reprogrammed . | . . . . . Reused . | . . . . . Traps Extracted . | . . . . . Installed . | . . . . . Triggered 4 | . . . . 4 Machines | -11 -10 -10 -7 -5 ---------- Run | Yrd Mat Sub Rec Fac Machines Disabled 17 | . 1 . . 16 Max in Single Turn 4 | . 1 . . 4 Garrison Access 2 | . . . . 2 Machines Repaired . | . . . . . Machines Dismantled . | . . . . . Machines Sabotaged . | . . . . . Overloaded Fab Kills . | . . . . . Hacking | -11 -10 -10 -7 -5 --------- Run | Yrd Mat Sub Rec Fac Machines Accessed 33 | . 11 1 7 14 Terminals 19 | . 8 . 6 5 Fabricators 2 | . . . . 2 Repair Stations 3 | . 1 . . 2 Recycling Units 4 | . 2 . 1 1 Scanalyzers 2 | . . . . 2 Garrison Access 2 | . . . . 2 Total Hacks 104 | . 40 3 18 43 Successful 47 | . 17 3 9 18 Failed 57 | . 23 . 9 25 Catastrophic 8 | . 4 . . 4 Database Lockouts . | . . . . . Manual 59 | . 28 . 7 24 Terminals 67 | . 36 . 17 14 Fabricators 10 | . . . . 10 Repair Stations 7 | . 2 . . 5 Recycling Units 6 | . 2 . 1 3 Scanalyzers 8 | . . . . 8 Garrison Access 3 | . . . . 3 Terminal Hacks 18 | . 9 3 5 1 Record 3 | . . 3 . . Part Schematic 5 | . 4 . 1 . Prototype ID Bank 1 | . . . 1 . Terminal Index 2 | . 1 . . 1 Locate Traps 1 | . 1 . . . Security Status 2 | . . . 2 . Transport Status 1 | . 1 . . . Hauler Manifests 1 | . 1 . . . Registered Components 1 | . 1 . . . Registered Prototypes 1 | . . . 1 . Fabricator Hacks 5 | . . . . 5 Network Status 1 | . . . . 1 Load Schematic 2 | . . . . 2 Build 2 | . . . . 2 Repair Station Hacks 6 | . 2 . . 4 Scan Component 3 | . 1 . . 2 Repair 3 | . 1 . . 2 Recycling Unit Hacks . | . . . . . Scanalyzer 3 | . . . . 3 Insert Component 2 | . . . . 2 Analyze 1 | . . . . 1 Garrison Access Hacks 1 | . . . . 1 Seal Access 1 | . . . . 1 Unauthorized Hacks 14 | . 6 . 4 4 Terminals 8 | . 4 . 3 1 Botnet 7 | . 3 . 3 1 Operators 1 | . 1 . . . Fabricators . | . . . . . Repair Stations . | . . . . . Recycling Units 3 | . 2 . 1 . Mask 1 | . 1 . . . Tunnel 2 | . 1 . 1 . Scanalyzers 2 | . . . . 2 Extract 2 | . . . . 2 Garrison Access 1 | . . . . 1 Jam 1 | . . . . 1 Data Cores Recovered 1 | . 1 . . . Used . | . . . . . Hacking Detections 28 | . 10 . 6 12 Full Trace Events 4 | . 2 . 1 1 Feedback Events . | . . . . . Feedback Blocked . | . . . . . Robot Schematics Acquired . | . . . . . Robots Built . | . . . . . Authchips . | . . . . . Time . | . . . . . Total Robot Build Rating . | . . . . . Part Schematics Acquired 17 | . 4 . 1 12 Parts Built 2 | . . . . 2 Authchips 1 | . . . . 1 Time 120 | . . . . 120 Total Part Build Rating 6 | . . . . 6 Parts Repaired 3 | . 1 . . 2 Time 74 | . 26 . . 48 Parts Recycled . | . . . . . Recycled Matter . | . . . . . Retrieved Matter . | . . . . . Retrieved Components . | . . . . . Parts Scanalyzed 1 | . . . . 1 Part Schematics Acquired 1 | . . . . 1 Parts Damaged . | . . . . . Bothacking | -11 -10 -10 -7 -5 ------------ Run | Yrd Mat Sub Rec Fac Used RIF Installer . | . . . . . Robots Hacked . | . . . . . Non-combat . | . . . . . Combat . | . . . . . Robot Hacks Applied . | . . . . . Relay Couplers Released . | . . . . . Fabnet Peak Effective % . | . . . . . Robots Rewired . | . . . . . Allies Hacked . | . . . . . Hacks Repelled . | . . . . . Allies | -11 -10 -10 -7 -5 -------- Run | Yrd Mat Sub Rec Fac Total Allies . | . . . . . Largest Group . | . . . . . Highest-Rated Group . | . . . . . Highest-Rated Ally . | . . . . . Total Orders . | . . . . . Ally Attacks . | . . . . . Total Damage . | . . . . . Kills . | . . . . . Allies Corrupted . | . . . . . Allies Melted . | . . . . . Intel | -11 -10 -10 -7 -5 ------- Run | Yrd Mat Sub Rec Fac Robot Analysis Total . | . . . . . Derelict Logs Recovered . | . . . . . Drone Launches . | . . . . . Drone Recoveries . | . . . . . Exploration | -11 -10 -10 -7 -5 ------------- Run | Yrd Mat Sub Rec Fac Turns Passed 8169 | 163 2226 386 1654 3740 Spaces Moved 5363 | 100 1363 230 1149 2521 Core 16 | 10 . . . 6 Treads 59 | . 45 . . 14 Legs . | . . . . . Wheels 4199 | 90 1318 230 1149 1412 Hover 1089 | . . . . 1089 Flight . | . . . . . Fastest Speed 36 | 50 95 130 130 36 Average Speed 121 | 96 130 130 130 112 Slowest Speed 900 | 200 320 130 140 900 Overloaded Moves . | . . . . . Propulsion Burnouts . | . . . . . Robots Hopped . | . . . . . Cave-ins Triggered 1 | . . . . 1 Exploration Rate (%) 51 | 5 99 19 91 41 Regions Visited 4 Branch Regions 2 Pre-discovered Areas 3 | . 1 1 1 . Known Exits Taken 1 | . . . 1 . Unknown Exits Taken 3 | 1 1 1 . . Scrap Searched 1 | . . 1 . . Spaces Dug 42 | . 1 . 1 40 Terrain Destroyed 189 | . 1 . 1 187 Melee 27 | . . . . 27 Projectile 30 | . 1 . 1 28 AOE 131 | . . . . 131 Terrain Rammed . | . . . . . Walls Destroyed . | . . . . . Machines Disabled . | . . . . . Actions | -11 -10 -10 -7 -5 --------- Run | Yrd Mat Sub Rec Fac Total 6556 | 153 1635 274 1312 3182 Wait 519 | 11 103 17 122 266 Move 5359 | 99 1362 229 1148 2521 Hop . | . . . . . Pick Up 105 | 15 36 . 18 36 Fast Attach 42 | 3 1 . . 38 Attach 41 | 7 2 4 3 25 Detach 24 | . 1 . 2 21 Swap 53 | 4 27 2 4 16 Drop 77 | 3 18 . 14 42 Fire 297 | 11 85 22 1 178 Melee 39 | . . . . 39 Ram . | . . . . . Kick . | . . . . . Crush . | . . . . . Escape Stasis . | . . . . . Rewire . | . . . . . Trap . | . . . . . Miscellaneous . | . . . . . Route ------- -11/Scrapyard -10/Materials (discovered 6 exits: [*Mat x3] / [*Min x2] / *Sub) -10/Subcaves -7/Recycling -5/Factory History --------- Turn | Location | Event 31 | -11/Scrapyard | Discovered new exit (range 16) 164 | -11/Scrapyard | Entered Materials 198 | -10/Materials | Discovered new exit (range 8) 336 | -10/Materials | Build established: Mutant 622 | -10/Materials | Discovered new exit (range 8) 1489 | -10/Materials | Discovered new exit (range 4) 1555 | -10/Materials | Discovered new exit (range 10) 1683 | -10/Materials | Discovered new exit (range 16) 1931 | -10/Materials | Discovered new exit (range 12) 2194 | -10/Materials | Repaired Lgt. Armor Plating 2390 | -10/Materials | Entered Subcaves 2492 | -10/Subcaves | Visited Clippyterm 2496 | -10/Subcaves | Learned location of Deep Caves (-6) 2647 | -10/Subcaves | Ambushed by Subdweller buried in earth 2676 | -10/Subcaves | Core integrity fell below 50% 2690 | -10/Subcaves | Core integrity fell below 20% 2738 | -10/Subcaves | Lost 4 parts (1p1u2w) 2766 | -10/Subcaves | Discovered new exit (range 6) 2776 | -10/Subcaves | Entered Recycling 2776 | -7/Recycling | Found Scrap Engine 3009 | -7/Recycling | Build established: Scavenger-Mutant 3555 | -7/Recycling | Discovered new exit (range 6) 4158 | -7/Recycling | Identified exit to Factory 4430 | -7/Recycling | Entered Factory 4430 | -5/Factory | Evolved 10 slots: Propulsion x4, Utility x6 4476 | -5/Factory | Build established: Mutant 4792 | -5/Factory | Repaired Hvy. Hammer 5600 | -5/Factory | Cargo convoy interrupted 5920 | -5/Factory | Repaired Arm. Wheel 6384 | -5/Factory | Spotted B-75 Beast 6830 | -5/Factory | First assault squad dispatched 7003 | -5/Factory | Build established: Construct 7007 | -5/Factory | Lost 3 parts (1n2u) 7130 | -5/Factory | Lost 4 parts (1p1n2u) 7420 | -5/Factory | Build established: Mutant 7808 | -5/Factory | Build established: Scavenger-Mutant 7811 | -5/Factory | Crushed by falling debris 7934 | -5/Factory | Fabricated Lrg. Storage Unit? 7974 | -5/Factory | Fabricated Cloaking Device? 8128 | -5/Factory | Core integrity fell below 50% 8164 | -5/Factory | Core integrity fell below 20% 8170 | -5/Factory | Destroyed by G-50 Soldier with Heavy Laser Last Messages --------------- 08157_ U-05 Engineer lays Concrete. 08157_ Penetrated by Slug. 08157_ Adv. Targeting Computer destroyed. 08158_ Slug penetrates Wall. 08159_ U-05 Engineer lays Concrete. 08160_ Penetrated by Slug. 08161_ Adv. Targeting Computer destroyed. 08161_ U-05 Engineer builds a Wall. 08161_ Penetrated by Slug. 08162_ Katana destroyed. 08163_ Penetrated by Slug. 08165_ Dropped Med. Storage Unit. 08165_ U-05 Engineer lays Concrete. 08167_ P-70 Sage misfires. 08167_ U-05 Engineer builds a Wall. 08167_ Penetrated by Slug. 08167_ K-01 Serf collects debris. 08168_ Scrap Engine destroyed. 08168_ Discarded Arm. Medium Treads. 08169_ Slug penetrates Terminal. Map ----- +----------------------------------------------------+ | ?????????????????????????????????????????????????? | | ?????????????????????????????????????????????????? | | ?????????????????????????????????????????????????? | | ?????????????????????????????????????????????????? | | ?????????????????????????????????????????????????? | | ?????????????????????????????????????????????????? | | ?????????????????????????????????????????????????? | | ?????????????????????????????????????????????????? | | ?????????????????????????????????????????????????? | | ?????????????????????????????????????????????????? | | ?????????????????????????????????????????????????? | | ?????????????????????????????????????????????????? | | ?????????????????????????????????????????????????? | | ?????????????????????????????????????????????????? | | ?????????????????????????????????????????????????? | | ?????????????????????????????????????????????????? | | ?????????????????????????????????????????????????? | | ?????????????????????????????????????????????????? | | ?????????????????????????????????????????????????? | | ?????????????????????????????????????????????????? | | ?????????????????????????????????????????????????? | | ?????????????????????????????????????????????????? | | ??????????????????##???????????#########?????????? | | ????????###########;############" #?????????? | | ????????#"""""""" ; ; ""## # #?????????? | | ##+###### """"T"" ; @T""#!## " ""#?????????? | | p # """#?????????? | | h g# """"#?????????? | | "" k pgg# """"#?????????? | | ? "" h g/ """"#?????????? | | ?? "T x # """"#?????????? | | ?????# "" # #?????????? | | ?????# " ! ; #?????????? | | ?????# ; /[#?????????? | | ?????# """"""""" ; /[ #?????????? | | ?????# ; /[ #?????????? | | ?????# ;#######?????????? | | ?????# u ##???????????????? | | ?????# ###+##########;;;;;;;#????????????????? | | ????## ##?????????### ????????????????? | | ????#% #???????????#! """ ????????????????? | | ##### #???????????# ] """ #???????????????? | | #???????????# """ #???????????????? | | #???????????# ? #???????????????? | | #???????????# "??? #???????????????? | | ##### #???????????# ???? #???????????????? | | ????# #???????????# ???? ????????????????? | | ????###+#####???????????????????[????????????????? | | ?????????????????????????????????????????????????? | | ?????????????????????????????????????????????????? | +----------------------------------------------------+ Best States ------------- Heat Dissipation 59 Energy Generation 21 Energy Capacity 315 Matter Stores 300 Matter Capacity 300 Sight Range 16 Robot Scan Range 15 Terrain Scan Range 16 Terrain Scan Density 10 Jamming Range 14 Cloak Strength 2 Additional Mass Support 9 Corruption Block 26 Armor Coverage 225 Resistance: TH 25 Melee Speed Boost 40 Evasion (%) 64 Targeting Accuracy 24 Target Analysis 6 Recoil Reduction 3 Offensive Hacking 10 Defensive Hacking 10 Authchip Count 10 Item Schematics ----------------- Hcp. Storage Unit | -10/Materials | Hacked Lrg. Storage Unit | -10/Materials | Hacked Cargo Storage Unit | -10/Materials | Hacked Huge Storage Unit | -10/Materials | Hacked Lgt. Fission Core | -7/Recycling | Hacked Hrd. Medium Armor Plating | -5/Factory | Scanalyzed Plasma Rifle | -5/Factory | Extracted Cloaking Device | -5/Factory | Extracted Targeting Computer | -5/Factory | Extracted Adv. Terrain Scan Processor | -5/Factory | Extracted Greatsword | -5/Factory | Extracted Enh. Optical Array | -5/Factory | Extracted Armor Integrity Analyzer | -5/Factory | Extracted Imp. Datajack | -5/Factory | Extracted Gravmag System | -5/Factory | Extracted Reaction Control System | -5/Factory | Extracted Neutron Cannon | -5/Factory | Extracted Robot Schematics ------------------ None Fabricated ------------ Lrg. Storage Unit | x1 | -5/Factory Cloaking Device | x1 | -5/Factory | Authchip Alien Tech Used ----------------- None Achievements -------------- None Challenges ------------ None Game ------ Seed MicrowarpNeutrinoBox Manual? 0 Play Time 02:13:19 Cumulative 177.9 hours Start 2024.06.02 @ 09:57:09 End 2024.06.02 @ 16:27:26 Sessions 3 Manual Loads 0 Difficulty Rogue Special Mode None Game No. 51 Rogue 46 Adventurer 4 Explorer 1 Win Type - Total 3 Types 1/0/1/1/0/0/0/0/0 Lore% 40 Gallery% 60 Achievement% 44 Wizard Run 0 Options --------- Layout 0 ASCII 0 Keyboard 0 Movement Mouse Keybinds 0 Fullscreen 1 Font 24/Smallcaps Map View 76x50 Zoom Use 0% Tactical HUD 1 Map Filters NONE Filters NONE Steam X RUN: d0041d11-7d04-438c-8394-3dfe2a6be3a5